[Event "FIDE Online Olympiad Div 2 Pool A 2020"]
[Site "Online"]
[Date "2020.08.15"]
[Round "2"]
[White "Osmanodja, Filiz"]
[Black "Hallaeva, Bahar"]
[Result "1-0"]
[ECO "C67"]
[WhiteElo "2253"]
[BlackElo "2010"]
[Annotator "broadcasts"]
[PlyCount "39"]
[EventDate "2020.08.14"]
[EventType "team-tourn"]
[TimeControl "900+5"]

1. e4 {[%emt 0:00:01]} e5 {[%emt 0:00:03]} 2. Nf3 {[%emt 0:00:02]} Nc6 {[%emt 0:00:02]} 3. Bb5 {[%emt 0:00:01]} Nf6 {[%emt 0:00:03]} 4. O-O {[%emt 0:00:02]} Nxe4 {[%emt 0:00:02]} 5. Re1 {[%emt 0:00:01]} Nd6 {[%emt 0:00:02]} 6. a4 {[%emt 0:00:01]} Be7 {[%emt 0:00:16]} 7. Nc3 {[%emt 0:00:02]} O-O {[%emt 0:00:15]} 8. d4 {[%emt 0:00:02]} Nxd4 {[%emt 0:02:55]} 9. Nxd4 {[%emt 0:00:03]} exd4 {[%emt 0:00:02]} 10. Nd5 {[%emt 0:00:01]} Bf6 {[%emt 0:00:10]} 11. Bd3 {[%emt 0:00:40]} Ne8 {[%emt 0:03:43]} 12. Qh5 {[%emt 0:03:54]} g6 {[%emt 0:00:03]} 13. Qf3 {[%emt 0:02:20]} Bg7 {[%emt 0:03:18]} 14. Ne7+ {[%emt 0:00:02]} Kh8 {[%emt 0:00:01]} 15. Bg5 {[%emt 0:00:02]} f6 {[%emt 0:00:38]} 16. Nxg6+ {[%emt 0:01:13]} hxg6 {[%emt 0:00:22]} 17. Qh3+ {[%emt 0:00:37]} Kg8 {[%emt 0:00:15]} 18. Bxg6 {[%emt 0:00:01]} Rf7 {[%emt 0:00:25]} 19. Qh7+ {[%emt 0:00:04]} Kf8 {[%emt 0:00:01]} 20. Bh6 {[%emt 0:00:05]} 1-0

[Event "FIDE Online Olympiad Div 2 Pool A 2020"]
[Site "Online"]
[Date "2020.08.15"]
[Round "2"]
[White "Nurmamedov, Azat"]
[Black "Engel, Luis"]
[Result "1-0"]
[ECO "E05"]
[WhiteElo "2238"]
[BlackElo "2153"]
[Annotator "broadcasts"]
[PlyCount "103"]
[EventDate "2020.08.14"]
[EventType "team-tourn"]
[TimeControl "900+5"]

1. Nf3 {[%emt 0:00:08]} Nf6 {[%emt 0:00:08]} 2. g3 {[%emt 0:00:05]} d5 {[%emt 0:00:06]} 3. Bg2 {[%emt 0:00:01]} e6 {[%emt 0:00:02]} 4. O-O {[%emt 0:00:01]} Be7 {[%emt 0:00:01]} 5. d4 {[%emt 0:00:03]} O-O {[%emt 0:00:02]} 6. c4 {[%emt 0:00:17]} dxc4 {[%emt 0:00:01]} 7. Qc2 {[%emt 0:01:47]} a6 {[%emt 0:00:04]} 8. a4 {[%emt 0:00:03]} Bd7 {[%emt 0:00:01]} 9. Rd1 {[%emt 0:01:13]} Bc6 {[%emt 0:00:46]} 10. Nc3 {[%emt 0:00:02]} Bxf3 {[%emt 0:00:34]} 11. Bxf3 {[%emt 0:00:02]} Nc6 {[%emt 0:00:10]} 12. Bxc6 {[%emt 0:03:17]} bxc6 {[%emt 0:00:03]} 13. a5 {[%emt 0:00:45]} Nd5 {[%emt 0:01:25]} 14. Na4 {[%emt 0:04:30]} Qb8 {[%emt 0:02:42]} 15. e4 {[%emt 0:01:07]} Nb4 {[%emt 0:00:35]} 16. Qxc4 {[%emt 0:00:03]} Qb5 {[%emt 0:00:05]} 17. Qc3 {[%emt 0:00:37]} f5 {[%emt 0:03:26]} 18. Qb3 {[%emt 0:01:17]} fxe4 {[%emt 0:01:28]} 19. Qxe6+ {[%emt 0:00:02]} Rf7 {[%emt 0:00:02]} 20. Nc3 {[%emt 0:00:08]} Qh5 {[%emt 0:00:11]} 21. Qxe4 {[%emt 0:00:27]} Raf8 {[%emt 0:00:30]} 22. Be3 {[%emt 0:00:03]} Bg5 {[%emt 0:01:35]} 23. Qe5 {[%emt 0:00:34]} Rf5 {[%emt 0:00:19]} 24. Qe6+ {[%emt 0:00:01]} Kh8 {[%emt 0:00:01]} 25. Rd2 {[%emt 0:00:10]} Bxe3 {[%emt 0:00:24]} 26. Qxe3 {[%emt 0:00:00]} Re8 {[%emt 0:00:09]} 27. Ne4 {[%emt 0:00:12]} Nd5 {[%emt 0:01:17]} 28. Qd3 {[%emt 0:00:03]} Qg6 {[%emt 0:00:18]} 29. Kh1 {[%emt 0:00:14]} Rh5 {[%emt 0:00:14]} 30. Nc3 {[%emt 0:00:02]} Qh6 {[%emt 0:00:13]} 31. f4 {[%emt 0:00:01]} Nf6 {[%emt 0:00:10]} 32. Qf3 {[%emt 0:00:06]} Qg6 {[%emt 0:00:16]} 33. Rg1 {[%emt 0:00:11]} Ng4 {[%emt 0:00:04]} 34. h4 {[%emt 0:00:07]} Re3 {[%emt 0:00:02]} 35. Qg2 {[%emt 0:00:04]} Qf6 {[%emt 0:00:06]} 36. Rf1 {[%emt 0:00:04]} Rxh4+ {[%emt 0:00:04]} 37. gxh4 {[%emt 0:00:01]} Qxh4+ {[%emt 0:00:00]} 38. Kg1 {[%emt 0:00:00]} Rg3 {[%emt 0:00:02]} 39. Qxg3 {[%emt 0:00:11]} Qxg3+ {[%emt 0:00:00]} 40. Kh1 {[%emt 0:00:02]} Qh3+ {[%emt 0:00:04]} 41. Kg1 {[%emt 0:00:01]} Qe3+ {[%emt 0:00:01]} 42. Rff2 {[%emt 0:00:05]} Nxf2 {[%emt 0:00:05]} 43. Rxf2 {[%emt 0:00:00]} Qxd4 {[%emt 0:00:01]} 44. Kg2 {[%emt 0:00:01]} h5 {[%emt 0:00:02]} 45. Re2 {[%emt 0:00:02]} Kh7 {[%emt 0:00:01]} 46. Kf3 {[%emt 0:00:03]} Qd3+ {[%emt 0:00:01]} 47. Re3 {[%emt 0:00:02]} Qf1+ {[%emt 0:00:02]} 48. Kg3 {[%emt 0:00:04]} Qg1+ {[%emt 0:00:01]} 49. Kf3 {[%emt 0:00:01]} h4 {[%emt 0:00:01]} 50. Ne2 {[%emt 0:00:01]} h3 {[%emt 0:00:02]} 51. Nxg1 {[%emt 0:00:03]} h2 {[%emt 0:00:03]} 52. Kg2 {[%emt 0:00:01]} 1-0

[Event "FIDE Online Olympiad Div 2 Pool A 2020"]
[Site "Online"]
[Date "2020.08.15"]
[Round "3"]
[White "Barcenilla, Rogelio"]
[Black "Fridman, Daniel"]
[Result "0-1"]
[ECO "A09"]
[WhiteElo "2325"]
[BlackElo "2577"]
[Annotator "broadcasts RC"]
[PlyCount "112"]
[EventDate "2020.08.14"]
[EventType "team-tourn"]
[TimeControl "900+5"]

1. c4 {[%emt 0:00:04]} e6 {[%emt 0:00:02]} 2. Nf3 {[%emt 0:00:08]} d5 {[%emt 0:00:02]} 3. g3 {[%emt 0:00:34]} Nf6 {[%emt 0:00:03]} 4. Bg2 {[%emt 0:00:01]} d4 {[%emt 0:00:01]} 5. O-O {[%emt 0:00:15]} c5 {[%emt 0:00:02]} 6. d3 {[%emt 0:00:44]} Nc6 {[%emt 0:00:02]} 7. Na3 {[%emt 0:00:03]} Bd6 {[%emt 0:00:10]} 8. Nc2 {[%emt 0:00:04]} O-O {[%emt 0:00:14]} 9. e4 {[%emt 0:01:08]} e5 {[%emt 0:00:36]} 10. h3 {[%emt 0:00:16]} Bd7 {[%emt 0:00:19]} 11. a3 {[%emt 0:00:11]} a6 {[%emt 0:00:51]} 12. Nd2 {[%emt 0:01:17]} Qc7 {[%emt 0:00:18]} 13. Ne1 {[%emt 0:00:48]} b5 {[%emt 0:00:14]} 14. Nef3 {[%emt 0:00:21]} Rfe8 {[%emt 0:00:29]} 15. Nh2 {[%emt 0:00:14]} Qc8 {[%emt 0:00:11]} 16. h4 {[%emt 0:00:28]} g6 {[%emt 0:00:04]} 17. b3 {[%emt 0:00:38]} Rb8 {[%emt 0:00:05]} 18. Ra2 {[%emt 0:00:04]} Na5 {[%emt 0:01:09]} 19. Bf3 {[%emt 0:02:20]} h5 {[%emt 0:00:37]} 20. Rb2 {[%emt 0:00:22]} bxc4 {[%emt 0:00:56]} 21. dxc4 {[%emt 0:00:13]} Rb6 {[%emt 0:00:22]} 22. Qc2 {[%emt 0:00:12]} Qb7 {[%emt 0:00:44]} 23. Qd3 {[%emt 0:01:11]} Rb8 {[%emt 0:01:33]} 24. Bd1 {[%emt 0:00:56]} Ba4 {[%emt 0:01:05]} 25. f4 {[%emt 0:00:56]} Bxb3 {[%emt 0:00:46]} 26. fxe5 {[%emt 0:02:02]} Bxe5 {[%emt 0:00:04]} 27. Nxb3 {[%emt 0:00:34]} Nxb3 {[%emt 0:00:04]} 28. Bf4 {[%emt 0:00:06]} Nd7 {[%emt 0:03:11]} 29. Rbf2 {[%emt 0:00:12]} Na5 {[%emt 0:00:38]} 30. Nf3 {[%emt 0:00:16]} Nc6 {[%emt 0:00:15]} 31. Rg2 {[%emt 0:00:34]} Qc7 {[%emt 0:00:51]} 32. Nd2 {[%emt 0:00:02]} Bd6 {[%emt 0:00:21]} 33. Bxd6 {[%emt 0:00:24]} Qxd6 {[%emt 0:00:03]} 34. g4 {[%emt 0:00:01]} hxg4 {[%emt 0:00:18]} 35. Bxg4 {[%emt 0:00:02]} Nce5 {[%emt 0:00:04]} 36. Qh3 {[%emt 0:00:01]} Nf6 {[%emt 0:00:12]} 37. Bd1 {[%emt 0:00:07]} Kg7 {[%emt 0:00:06]} 38. Rg5 {[%emt 0:00:03]} Qe7 {[%emt 0:00:19]} 39. Qg3 {[%emt 0:00:02]} Re6 {[%emt 0:00:02]} 40. h5 {[%emt 0:00:01]} Rh8 {[%emt 0:00:08]} 41. Rff5 {[%emt 0:00:03]} Nfd7 {[%emt 0:00:11]} 42. Ba4 {[%emt 0:00:08]} Rh6 {[%emt 0:00:10]} 43. Bxd7 {[%emt 0:00:12]} Nxd7 {[%emt 0:00:02]} 44. hxg6 {[%emt 0:00:09]} Rhxg6 {[%emt 0:00:25]} 45. Nf3 {[%emt 0:00:05]} Rxe4 {[%emt 0:00:08]} 46. Rxg6+ {[%emt 0:00:13]} fxg6 {[%emt 0:00:02]} 47. Rg5 {[%emt 0:00:01]} Nf8 {[%emt 0:00:06]} 48. Rd5 {[%emt 0:00:04]} Re2 {[%emt 0:00:04]} 49. Ng5 {[%emt 0:00:05]} Qe3+ {[%emt 0:00:02]} 50. Qxe3 {[%emt 0:00:01]} Rxe3 {[%emt 0:00:02]} 51. Rxc5 {[%emt 0:00:00]} d3 {[%emt 0:00:01]} 52. Rd5 {[%emt 0:00:01]} d2 {[%emt 0:00:01]} 53. Kf2 {[%emt 0:00:02]} Re5 {[%emt 0:00:05]} 54. Rxd2 {[%emt 0:00:07]} Rxg5 {[%emt 0:00:02]} 55. Rd6 {[%emt 0:00:02]} Ra5 {[%emt 0:00:01]} 56. Ke3 {[%emt 0:00:12]} Kf7 {[%emt 0:00:06]} 0-1

[Event "FIDE Online Olympiad Div 2 Pool A 2020"]
[Site "Online"]
[Date "2020.08.15"]
[Round "3"]
[White "Wagner, Dennis"]
[Black "Paragua, Mark"]
[Result "1-0"]
[ECO "E94"]
[WhiteElo "2259"]
[BlackElo "2188"]
[Annotator "broadcasts"]
[PlyCount "81"]
[EventDate "2020.08.14"]
[EventType "team-tourn"]
[TimeControl "900+5"]

1. d4 {[%emt 0:00:02]} Nf6 {[%emt 0:00:05]} 2. c4 {[%emt 0:00:02]} g6 {[%emt 0:00:04]} 3. Nc3 {[%emt 0:00:02]} Bg7 {[%emt 0:00:01]} 4. e4 {[%emt 0:00:02]} d6 {[%emt 0:00:01]} 5. Nf3 {[%emt 0:00:08]} O-O {[%emt 0:00:01]} 6. Be2 {[%emt 0:00:01]} e5 {[%emt 0:00:03]} 7. O-O {[%emt 0:00:01]} exd4 {[%emt 0:00:02]} 8. Nxd4 {[%emt 0:00:02]} Re8 {[%emt 0:00:01]} 9. f3 {[%emt 0:00:00]} c6 {[%emt 0:00:01]} 10. Kh1 {[%emt 0:01:35]} Nbd7 {[%emt 0:00:31]} 11. Bf4 {[%emt 0:00:38]} Nh5 {[%emt 0:04:10]} 12. Bxd6 {[%emt 0:01:03]} Ne5 {[%emt 0:00:03]} 13. c5 {[%emt 0:00:02]} Bh6 {[%emt 0:03:50]} 14. g3 {[%emt 0:01:57]} Bh3 {[%emt 0:01:43]} 15. f4 {[%emt 0:00:32]} Bxf1 {[%emt 0:01:10]} 16. Qxf1 {[%emt 0:00:04]} Nd7 {[%emt 0:00:19]} 17. Bxh5 {[%emt 0:02:36]} gxh5 {[%emt 0:00:03]} 18. Qh3 {[%emt 0:00:07]} Bf8 {[%emt 0:01:02]} 19. Qxh5 {[%emt 0:00:55]} Bxd6 {[%emt 0:01:56]} 20. cxd6 {[%emt 0:00:01]} Qf6 {[%emt 0:00:54]} 21. e5 {[%emt 0:02:07]} Nxe5 {[%emt 0:00:07]} 22. fxe5 {[%emt 0:00:06]} Rxe5 {[%emt 0:00:01]} 23. Qg4+ {[%emt 0:00:29]} Kh8 {[%emt 0:00:19]} 24. d7 {[%emt 0:00:28]} Rd8 {[%emt 0:00:04]} 25. Rd1 {[%emt 0:01:31]} Re7 {[%emt 0:00:11]} 26. Nf3 {[%emt 0:02:12]} Qg6 {[%emt 0:00:19]} 27. Qd4+ {[%emt 0:00:10]} Kg8 {[%emt 0:00:03]} 28. Ne5 {[%emt 0:00:09]} Qh5 {[%emt 0:00:06]} 29. Ng4 {[%emt 0:00:04]} Qg6 {[%emt 0:00:05]} 30. Nf6+ {[%emt 0:00:04]} Kf8 {[%emt 0:00:01]} 31. Nce4 {[%emt 0:00:02]} h5 {[%emt 0:00:03]} 32. Rf1 {[%emt 0:00:13]} Re6 {[%emt 0:00:04]} 33. Rf4 {[%emt 0:00:04]} b6 {[%emt 0:00:03]} 34. b4 {[%emt 0:00:02]} Re7 {[%emt 0:00:06]} 35. Qd6 {[%emt 0:00:03]} c5 {[%emt 0:00:04]} 36. bxc5 {[%emt 0:00:02]} bxc5 {[%emt 0:00:00]} 37. Nxc5 {[%emt 0:00:04]} Qb1+ {[%emt 0:00:02]} 38. Kg2 {[%emt 0:00:02]} Qc2+ {[%emt 0:00:02]} 39. Rf2 {[%emt 0:00:02]} Qg6 {[%emt 0:00:15]} 40. Ne6+ {[%emt 0:00:05]} fxe6 {[%emt 0:00:06]} 41. Nd5+ {[%emt 0:00:03]} 1-0

[Event "FIDE Online Olympiad Div 2 Pool A 2020"]
[Site "Online"]
[Date "2020.08.15"]
[Round "3"]
[White "Schulze, Lara"]
[Black "Frayna, Janelle Mae"]
[Result "1-0"]
[ECO "B04"]
[WhiteElo "2110"]
[BlackElo "2025"]
[Annotator "broadcasts"]
[PlyCount "57"]
[EventDate "2020.08.14"]
[EventType "team-tourn"]
[TimeControl "900+5"]

1. e4 {[%emt 0:00:02]} Nf6 {[%emt 0:00:07]} 2. e5 {[%emt 0:00:02]} Nd5 {[%emt 0:00:01]} 3. d4 {[%emt 0:00:00]} d6 {[%emt 0:00:01]} 4. Nf3 {[%emt 0:00:01]} g6 {[%emt 0:00:02]} 5. Bc4 {[%emt 0:00:18]} Nb6 {[%emt 0:00:04]} 6. Bb3 {[%emt 0:00:02]} Bg7 {[%emt 0:00:02]} 7. O-O {[%emt 0:00:06]} O-O {[%emt 0:00:01]} 8. a4 {[%emt 0:00:02]} a5 {[%emt 0:00:19]} 9. Nc3 {[%emt 0:00:08]} Nc6 {[%emt 0:00:05]} 10. exd6 {[%emt 0:02:20]} cxd6 {[%emt 0:00:32]} 11. h3 {[%emt 0:00:26]} Bf5 {[%emt 0:00:53]} 12. Re1 {[%emt 0:01:05]} e5 {[%emt 0:01:25]} 13. Bg5 {[%emt 0:00:35]} Qc8 {[%emt 0:00:54]} 14. Nb5 {[%emt 0:00:33]} Nxd4 {[%emt 0:01:46]} 15. Nfxd4 {[%emt 0:00:15]} exd4 {[%emt 0:00:03]} 16. Be7 {[%emt 0:01:26]} d5 {[%emt 0:02:20]} 17. Bxf8 {[%emt 0:01:03]} Qxf8 {[%emt 0:00:08]} 18. Nxd4 {[%emt 0:00:25]} Bd7 {[%emt 0:00:04]} 19. c3 {[%emt 0:00:12]} h5 {[%emt 0:00:41]} 20. Qf3 {[%emt 0:00:20]} Qc5 {[%emt 0:00:15]} 21. Qd3 {[%emt 0:03:41]} Rd8 {[%emt 0:00:14]} 22. Bc2 {[%emt 0:01:20]} Qd6 {[%emt 0:00:49]} 23. Nb5 {[%emt 0:00:21]} Qf8 {[%emt 0:00:22]} 24. Bb3 {[%emt 0:00:18]} Bc6 {[%emt 0:00:36]} 25. Rad1 {[%emt 0:00:37]} Nd7 {[%emt 0:00:35]} 26. Bxd5 {[%emt 0:00:44]} Ne5 {[%emt 0:01:49]} 27. Rxe5 {[%emt 0:00:15]} Bxe5 {[%emt 0:00:03]} 28. Qxg6+ {[%emt 0:00:19]} Bg7 {[%emt 0:02:45]} 29. Bxf7+ {[%emt 0:00:06]} 1-0

[Event "FIDE Online Olympiad Div 2 Pool A 2020"]
[Site "Online"]
[Date "2020.08.15"]
[Round "3"]
[White "Mordido, Kylen Joy"]
[Black "Muetsch, Annmarie"]
[Result "0-1"]
[ECO "A65"]
[WhiteElo "1980"]
[BlackElo "2298"]
[Annotator "broadcasts"]
[PlyCount "82"]
[EventDate "2020.08.14"]
[EventType "team-tourn"]
[TimeControl "900+5"]

1. c4 {[%emt 0:00:05]} Nf6 {[%emt 0:00:03]} 2. d4 {[%emt 0:00:05]} g6 {[%emt 0:00:02]} 3. Nc3 {[%emt 0:00:05]} Bg7 {[%emt 0:00:01]} 4. e4 {[%emt 0:00:02]} d6 {[%emt 0:00:02]} 5. f3 {[%emt 0:00:03]} O-O {[%emt 0:00:02]} 6. Bg5 {[%emt 0:00:04]} c5 {[%emt 0:00:01]} 7. d5 {[%emt 0:00:04]} e6 {[%emt 0:00:04]} 8. Qd2 {[%emt 0:00:13]} exd5 {[%emt 0:00:27]} 9. cxd5 {[%emt 0:00:04]} h6 {[%emt 0:03:29]} 10. Be3 {[%emt 0:00:07]} a6 {[%emt 0:00:15]} 11. a4 {[%emt 0:00:03]} Nbd7 {[%emt 0:00:18]} 12. Nh3 {[%emt 0:00:06]} Ne5 {[%emt 0:00:54]} 13. Nf2 {[%emt 0:00:03]} Kh7 {[%emt 0:00:24]} 14. Be2 {[%emt 0:00:08]} b6 {[%emt 0:00:52]} 15. O-O {[%emt 0:00:16]} Rb8 {[%emt 0:00:16]} 16. h3 {[%emt 0:01:02]} Ne8 {[%emt 0:02:26]} 17. Qc2 {[%emt 0:00:59]} f5 {[%emt 0:00:25]} 18. f4 {[%emt 0:00:12]} Nf7 {[%emt 0:00:09]} 19. Bd3 {[%emt 0:00:15]} Qf6 {[%emt 0:00:21]} 20. Rae1 {[%emt 0:00:47]} Nc7 {[%emt 0:00:11]} 21. exf5 {[%emt 0:01:51]} gxf5 {[%emt 0:00:24]} 22. Ng4 {[%emt 0:02:24]} Qg6 {[%emt 0:00:20]} 23. Bf2 {[%emt 0:00:09]} h5 {[%emt 0:00:26]} 24. Nh2 {[%emt 0:00:47]} Bf6 {[%emt 0:01:00]} 25. Nf3 {[%emt 0:00:05]} Rg8 {[%emt 0:00:37]} 26. Bh4 {[%emt 0:00:19]} b5 {[%emt 0:00:26]} 27. Re6 {[%emt 0:01:38]} Bxe6 {[%emt 0:00:46]} 28. dxe6 {[%emt 0:00:02]} Nh6 {[%emt 0:00:03]} 29. Ng5+ {[%emt 0:01:59]} Bxg5 {[%emt 0:00:58]} 30. fxg5 {[%emt 0:00:39]} c4 {[%emt 0:00:01]} 31. Be2 {[%emt 0:01:14]} Nxe6 {[%emt 0:00:03]} 32. Ne4 {[%emt 0:01:39]} Nd4 {[%emt 0:00:56]} 33. Qd1 {[%emt 0:00:02]} Nxe2+ {[%emt 0:00:03]} 34. Qxe2 {[%emt 0:00:01]} Rbe8 {[%emt 0:00:24]} 35. gxh6 {[%emt 0:00:05]} Rxe4 {[%emt 0:00:03]} 36. Qf2 {[%emt 0:00:02]} Rxh4 {[%emt 0:00:06]} 37. Kh2 {[%emt 0:00:10]} Rf4 {[%emt 0:00:07]} 38. Qa7+ {[%emt 0:00:03]} Kh8 {[%emt 0:00:13]} 39. Qg7+ {[%emt 0:00:03]} Rxg7 {[%emt 0:00:03]} 40. hxg7+ {[%emt 0:00:02]} Qxg7 {[%emt 0:00:04]} 41. Rxf4 {[%emt 0:00:01]} Qe5 {[%emt 0:00:01]} 0-1

[Event "FIDE Online Olympiad Div 2 Pool A 2020"]
[Site "Online"]
[Date "2020.08.15"]
[Round "3"]
[White "Fronda, Jan Jodilyn"]
[Black "Osmanodja, Filiz"]
[Result "0-1"]
[ECO "B53"]
[WhiteElo "1850"]
[BlackElo "2286"]
[Annotator "broadcasts"]
[PlyCount "94"]
[EventDate "2020.08.14"]
[EventType "team-tourn"]
[TimeControl "900+5"]

1. e4 {[%emt 0:00:02]} c5 {[%emt 0:00:09]} 2. Nf3 {[%emt 0:00:04]} Nc6 {[%emt 0:00:04]} 3. Bb5 {[%emt 0:00:05]} d6 {[%emt 0:00:02]} 4. d4 {[%emt 0:00:31]} cxd4 {[%emt 0:00:25]} 5. Qxd4 {[%emt 0:00:05]} Bd7 {[%emt 0:00:05]} 6. Bxc6 {[%emt 0:00:02]} Bxc6 {[%emt 0:00:00]} 7. Nc3 {[%emt 0:00:00]} Nf6 {[%emt 0:00:08]} 8. Bg5 {[%emt 0:00:01]} e6 {[%emt 0:00:01]} 9. O-O-O {[%emt 0:00:02]} Be7 {[%emt 0:00:06]} 10. e5 {[%emt 0:00:01]} dxe5 {[%emt 0:01:13]} 11. Qxe5 {[%emt 0:00:01]} Qb8 {[%emt 0:00:42]} 12. Qxb8+ {[%emt 0:00:04]} Rxb8 {[%emt 0:00:00]} 13. Ne5 {[%emt 0:00:00]} Bxg2 {[%emt 0:00:52]} 14. Rhg1 {[%emt 0:00:02]} Bc6 {[%emt 0:00:27]} 15. Be3 {[%emt 0:00:02]} O-O {[%emt 0:01:25]} 16. Bxa7 {[%emt 0:00:39]} Ra8 {[%emt 0:00:05]} 17. Bd4 {[%emt 0:02:34]} g6 {[%emt 0:00:49]} 18. Kb1 {[%emt 0:00:52]} Be8 {[%emt 0:01:56]} 19. Be3 {[%emt 0:00:40]} Ra5 {[%emt 0:00:53]} 20. Nc4 {[%emt 0:02:15]} Rh5 {[%emt 0:00:04]} 21. Bf4 {[%emt 0:00:18]} Rh4 {[%emt 0:00:55]} 22. Bd6 {[%emt 0:00:02]} Bxd6 {[%emt 0:00:03]} 23. Nxd6 {[%emt 0:00:01]} Bc6 {[%emt 0:00:06]} 24. a3 {[%emt 0:01:11]} Rxh2 {[%emt 0:00:04]} 25. Rd2 {[%emt 0:00:40]} h5 {[%emt 0:00:18]} 26. b4 {[%emt 0:00:01]} h4 {[%emt 0:00:08]} 27. b5 {[%emt 0:00:07]} Bf3 {[%emt 0:00:09]} 28. Rd4 {[%emt 0:03:25]} e5 {[%emt 0:01:46]} 29. Rc4 {[%emt 0:00:42]} h3 {[%emt 0:00:52]} 30. Rh4 {[%emt 0:00:48]} Rd8 {[%emt 0:00:27]} 31. Nc4 {[%emt 0:01:51]} Rd4 {[%emt 0:00:17]} 32. Nxe5 {[%emt 0:00:10]} Rxh4 {[%emt 0:00:14]} 33. Nxf3 {[%emt 0:00:01]} Rg2 {[%emt 0:00:13]} 34. Rh1 {[%emt 0:00:18]} h2 {[%emt 0:00:06]} 35. Kb2 {[%emt 0:00:07]} Rh3 {[%emt 0:00:10]} 36. Nxh2 {[%emt 0:00:04]} Rhxh2 {[%emt 0:00:07]} 37. Rc1 {[%emt 0:00:01]} Rxf2 {[%emt 0:00:04]} 38. a4 {[%emt 0:00:01]} Rf4 {[%emt 0:00:03]} 39. Kb3 {[%emt 0:00:02]} Rh3 {[%emt 0:00:02]} 40. Rd1 {[%emt 0:00:10]} Rff3 {[%emt 0:00:07]} 41. Rd3 {[%emt 0:00:02]} Rxd3 {[%emt 0:00:02]} 42. cxd3 {[%emt 0:00:00]} Rxd3 {[%emt 0:00:01]} 43. a5 {[%emt 0:00:00]} Ne4 {[%emt 0:00:02]} 44. Kc4 {[%emt 0:00:06]} Rxc3+ {[%emt 0:00:01]} 45. Kd4 {[%emt 0:00:01]} f5 {[%emt 0:00:02]} 46. a6 {[%emt 0:00:02]} bxa6 {[%emt 0:00:02]} 47. bxa6 {[%emt 0:00:01]} Ra3 {[%emt 0:00:01]} 0-1

[Event "FIDE Online Olympiad Div 2 Pool A 2020"]
[Site "Online"]
[Date "2020.08.15"]
[Round "4"]
[White "Bluebaum, Matthias"]
[Black "Firman Syah, Farid"]
[Result "1-0"]
[ECO "E51"]
[WhiteElo "2562"]
[BlackElo "2283"]
[Annotator "broadcasts"]
[PlyCount "63"]
[EventDate "2020.08.14"]
[EventType "team-tourn"]
[TimeControl "900+5"]

1. d4 {[%emt 0:00:02]} Nf6 {[%emt 0:00:02]} 2. c4 {[%emt 0:00:02]} e6 {[%emt 0:00:02]} 3. Nc3 {[%emt 0:00:03]} Bb4 {[%emt 0:00:02]} 4. e3 {[%emt 0:00:01]} d5 {[%emt 0:00:07]} 5. Bd2 {[%emt 0:00:03]} O-O {[%emt 0:00:05]} 6. Nf3 {[%emt 0:00:01]} b6 {[%emt 0:00:31]} 7. cxd5 {[%emt 0:00:02]} exd5 {[%emt 0:00:03]} 8. Bd3 {[%emt 0:00:01]} c5 {[%emt 0:00:08]} 9. h3 {[%emt 0:01:01]} Nc6 {[%emt 0:00:10]} 10. a3 {[%emt 0:00:03]} Ba5 {[%emt 0:00:18]} 11. O-O {[%emt 0:00:11]} Bb7 {[%emt 0:01:16]} 12. Rc1 {[%emt 0:00:19]} Bxc3 {[%emt 0:00:59]} 13. Bxc3 {[%emt 0:00:03]} c4 {[%emt 0:00:02]} 14. Bc2 {[%emt 0:00:26]} b5 {[%emt 0:00:03]} 15. Ne5 {[%emt 0:00:43]} a5 {[%emt 0:00:09]} 16. f3 {[%emt 0:01:00]} Qb6 {[%emt 0:00:10]} 17. Nxc6 {[%emt 0:01:10]} Bxc6 {[%emt 0:00:06]} 18. Qd2 {[%emt 0:00:01]} Rfb8 {[%emt 0:01:12]} 19. b4 {[%emt 0:00:03]} cxb3 {[%emt 0:00:10]} 20. Bxb3 {[%emt 0:00:10]} b4 {[%emt 0:00:01]} 21. axb4 {[%emt 0:00:03]} axb4 {[%emt 0:00:00]} 22. Bb2 {[%emt 0:00:09]} Ba4 {[%emt 0:00:10]} 23. Qc2 {[%emt 0:01:02]} Bxb3 {[%emt 0:00:57]} 24. Qxb3 {[%emt 0:00:00]} h6 {[%emt 0:00:01]} 25. e4 {[%emt 0:00:19]} Re8 {[%emt 0:01:52]} 26. Rce1 {[%emt 0:01:00]} dxe4 {[%emt 0:02:34]} 27. fxe4 {[%emt 0:00:00]} Rad8 {[%emt 0:00:01]} 28. Qf3 {[%emt 0:01:35]} Re7 {[%emt 0:02:10]} 29. Kh1 {[%emt 0:00:48]} Rxd4 {[%emt 0:02:39]} 30. e5 {[%emt 0:00:55]} Nd5 {[%emt 0:00:31]} 31. Bxd4 {[%emt 0:00:06]} Qxd4 {[%emt 0:00:04]} 32. Rd1 {[%emt 0:00:02]} 1-0

[Event "FIDE Online Olympiad Div 2 Pool A 2020"]
[Site "Online"]
[Date "2020.08.15"]
[Round "4"]
[White "Sukandar, Irine Kharisma"]
[Black "Schulze, Lara"]
[Result "1-0"]
[ECO "B53"]
[WhiteElo "2492"]
[BlackElo "2074"]
[Annotator "broadcasts"]
[PlyCount "93"]
[EventDate "2020.08.14"]
[EventType "team-tourn"]
[TimeControl "900+5"]

1. e4 {[%emt 0:00:05]} c5 {[%emt 0:00:04]} 2. Nf3 {[%emt 0:00:03]} Nc6 {[%emt 0:00:03]} 3. Bb5 {[%emt 0:00:25]} d6 {[%emt 0:00:05]} 4. d4 {[%emt 0:00:04]} cxd4 {[%emt 0:00:24]} 5. Qxd4 {[%emt 0:00:06]} Bd7 {[%emt 0:00:02]} 6. Qd3 {[%emt 0:00:06]} Nf6 {[%emt 0:00:35]} 7. c4 {[%emt 0:00:14]} e6 {[%emt 0:00:59]} 8. Nc3 {[%emt 0:01:03]} Be7 {[%emt 0:00:10]} 9. O-O {[%emt 0:00:04]} O-O {[%emt 0:00:20]} 10. h3 {[%emt 0:00:28]} Rc8 {[%emt 0:00:20]} 11. Be3 {[%emt 0:00:39]} a6 {[%emt 0:00:48]} 12. Bxc6 {[%emt 0:00:05]} Bxc6 {[%emt 0:00:00]} 13. Nd4 {[%emt 0:00:09]} Qc7 {[%emt 0:02:09]} 14. Rac1 {[%emt 0:00:34]} Rfd8 {[%emt 0:00:02]} 15. Nd5 {[%emt 0:01:16]} Bxd5 {[%emt 0:01:04]} 16. cxd5 {[%emt 0:00:07]} Qd7 {[%emt 0:00:02]} 17. dxe6 {[%emt 0:01:18]} fxe6 {[%emt 0:00:02]} 18. Qb3 {[%emt 0:00:59]} d5 {[%emt 0:00:37]} 19. exd5 {[%emt 0:01:00]} exd5 {[%emt 0:00:12]} 20. Qb6 {[%emt 0:00:41]} Bd6 {[%emt 0:00:42]} 21. Bg5 {[%emt 0:00:58]} Rxc1 {[%emt 0:02:04]} 22. Rxc1 {[%emt 0:00:06]} Rf8 {[%emt 0:00:05]} 23. Qb3 {[%emt 0:00:37]} Bb8 {[%emt 0:01:07]} 24. Bxf6 {[%emt 0:01:12]} Rxf6 {[%emt 0:00:10]} 25. Rc5 {[%emt 0:00:24]} Rd6 {[%emt 0:00:54]} 26. Qc3 {[%emt 0:00:34]} Rf6 {[%emt 0:00:48]} 27. Qb3 {[%emt 0:00:28]} Rd6 {[%emt 0:00:02]} 28. Qc2 {[%emt 0:00:14]} Rf6 {[%emt 0:00:15]} 29. Rc8+ {[%emt 0:00:13]} Rf8 {[%emt 0:00:05]} 30. Rxf8+ {[%emt 0:00:03]} Kxf8 {[%emt 0:00:00]} 31. Qxh7 {[%emt 0:00:03]} Be5 {[%emt 0:00:49]} 32. Qh8+ {[%emt 0:00:53]} Ke7 {[%emt 0:00:02]} 33. Qh4+ {[%emt 0:00:23]} Bf6 {[%emt 0:00:09]} 34. Qf4 {[%emt 0:00:03]} Qc8 {[%emt 0:00:50]} 35. Nf5+ {[%emt 0:00:13]} Kf8 {[%emt 0:00:51]} 36. Qd6+ {[%emt 0:00:04]} Ke8 {[%emt 0:00:03]} 37. Qxd5 {[%emt 0:00:24]} Qc1+ {[%emt 0:00:06]} 38. Kh2 {[%emt 0:00:02]} Qf4+ {[%emt 0:00:04]} 39. Ng3 {[%emt 0:00:03]} Qxf2 {[%emt 0:00:18]} 40. Qxb7 {[%emt 0:00:42]} Bd4 {[%emt 0:00:19]} 41. Qe4+ {[%emt 0:00:13]} Kd8 {[%emt 0:00:10]} 42. Nf5 {[%emt 0:00:33]} Qg1+ {[%emt 0:00:20]} 43. Kg3 {[%emt 0:00:02]} Bf2+ {[%emt 0:00:06]} 44. Kf3 {[%emt 0:00:03]} Bb6 {[%emt 0:00:04]} 45. Qe7+ {[%emt 0:00:10]} Kc8 {[%emt 0:00:04]} 46. Nd6+ {[%emt 0:00:02]} Kb8 {[%emt 0:00:01]} 47. Qb7# {[%emt 0:00:02]} 1-0